bitfinex/quotes_BTCUSD_20250718
["timestamp","ask_amount","ask_price","bid_price","bid_amount"]
[1752843808049,0.32293955,119310.0,119300.0,0.21286126]
[1752843808249,0.32293962,119310.0,119300.0,0.21286126]
[1752843808470,0.24482121,119310.0,119300.0,0.21286126]
[1752843808883,0.22284922,119310.0,119300.0,0.21286126]
[1752843810245,0.23123011,119310.0,119300.0,0.21286126]
[1752843810494,0.23961114,119310.0,119300.0,0.21286126]
[1752843810961,0.23123011,119310.0,119300.0,0.21286126]
[1752843811182,0.23961114,119310.0,119300.0,0.21286126]
[1752843811404,0.26263321,119310.0,119300.0,0.21286126]
[1752843811646,0.27622438,119310.0,119300.0,0.21286126]
[1752843812109,0.28460562,119310.0,119300.0,0.21286126]
[1752843812348,0.55184744,119310.0,119300.0,0.0034]
[1752843812579,1.05889991,119310.0,119300.0,0.0034]
[1752843813028,0.5350858,119310.0,119300.0,0.0034]
[1752843813233,0.3992458,119310.0,119300.0,0.0034]
[1752843813441,0.10861922,119310.0,119300.0,0.18780882]
[1752843813677,0.25408266,119310.0,119300.0,0.22124334]
[1752843813883,0.24570128,119310.0,119300.0,0.22124334]
[1752843814092,0.11736259,119310.0,119300.0,0.22124334]
[1752843814327,0.25412252,119310.0,119300.0,0.21911334]
[1752843814563,0.12574383,119310.0,119300.0,0.21911334]
[1752843814745,0.26250383,119310.0,119300.0,0.21911334]
[1752843814953,0.25412252,119310.0,119300.0,0.21911334]
[1752843815158,0.2625039,119310.0,119300.0,0.21911334]
[1752843815377,0.31799883,119310.0,119300.0,0.21911334]
[1752843815809,0.24574128,119310.0,119300.0,0.21911334]
[1752843816187,0.24574121,119310.0,119300.0,0.21911334]
[1752843816333,0.25412238,119310.0,119300.0,0.21911334]
[1752843816527,0.24574121,119310.0,119300.0,0.21911334]
[1752843816734,0.23736018,119310.0,119300.0,0.21911334]
[1752843816986,0.29407331,119310.0,119300.0,0.21911334]
[1752843817196,0.30245441,119310.0,119300.0,0.21911334]
[1752843817403,0.29407331,119310.0,119300.0,0.21911334]
[1752843817599,0.22897922,119310.0,119300.0,0.21911334]
[1752843817768,0.23736018,119310.0,119300.0,0.21911334]
[1752843817967,0.22897922,119310.0,119300.0,0.21911334]
[1752843818390,0.22897922,119310.0,119300.0,0.22124334]
[1752843819024,0.23736018,119310.0,119300.0,0.21911334]
[1752843819233,0.23736011,119310.0,119300.0,0.21911334]
[1752843820467,0.26725447,119310.0,119300.0,0.21911334]
[1752843820693,0.2672544,119310.0,119300.0,0.21911334]
[1752843821510,0.25887337,119310.0,119300.0,0.21911334]
[1752843822394,0.22897922,119310.0,119300.0,0.21911334]
[1752843823012,0.08700922,119310.0,119300.0,0.22124334]
[1752843823259,0.22400922,119310.0,119300.0,0.22124334]
[1752843823693,0.08700922,119310.0,119300.0,0.74505745]
[1752843823884,0.22400922,119310.0,119300.0,0.74505745]
[1752843824097,0.22400922,119310.0,119300.0,0.22124334]
[1752843824302,0.22300922,119310.0,119300.0,0.22124334]
[1752843824730,0.22300922,119310.0,119300.0,0.74805745]
[1752843825169,0.22300922,119310.0,119300.0,1.08805745]
[1752843825577,0.22300922,119310.0,119300.0,0.56424334]
[1752843828165,0.16765864,119290.0,119270.0,0.00873806]
[1752843828397,0.54737095,119270.0,119260.0,0.0034]
[1752843828604,0.51608572,119260.0,119250.0,0.0004]
[1752843828830,1.21364983,119260.0,119250.0,0.0004]
[1752843829271,1.08117983,119260.0,119250.0,0.0004]
[1752843829488,1.21841983,119260.0,119250.0,0.0004]
[1752843829772,0.17610048,119250.0,119240.0,0.0034]
[1752843830001,0.34981048,119250.0,119240.0,0.0034]
[1752843830629,0.73642459,119250.0,119240.0,0.0034]
[1752843830853,0.43532076,119250.0,119240.0,0.0034]
[1752843831064,0.49001966,119250.0,119240.0,0.0034]
[1752843831723,1.01383377,119250.0,119240.0,0.0034]
[1752843831929,1.02083377,119250.0,119240.0,0.0034]
[1752843833034,0.49701966,119250.0,119240.0,0.0034]
[1752843833272,1.04658643,119250.0,119240.0,0.0034]
[1752843833529,0.38557232,119250.0,119240.0,0.0034]
[1752843833742,0.52277232,119250.0,119240.0,0.0034]
[1752843834818,1.04658643,119250.0,119240.0,0.0034]
[1752843835234,0.52277232,119250.0,119240.0,0.0034]
[1752843835446,1.04658643,119250.0,119240.0,0.0034]
[1752843837898,1.03958643,119250.0,119240.0,0.0034]
[1752843838104,1.04258643,119250.0,119240.0,0.0034]
[1752843838316,0.19163002,119230.0,119220.0,0.01794085]
[1752843838525,0.4352333,119230.0,119220.0,0.01794085]
[1752843838745,0.4382033,119230.0,119220.0,0.01794085]
[1752843840299,0.50531458,119230.0,119220.0,0.01794085]
[1752843840970,0.38485458,119230.0,119220.0,0.01794085]
[1752843841182,0.52177458,119230.0,119220.0,0.01794085]
[1752843841409,0.38485458,119230.0,119220.0,0.01794085]
[1752843841641,0.2636103,119230.0,119220.0,0.02005085]
[1752843841856,0.27841395,119230.0,119220.0,0.21599127]
[1752843842069,0.42364046,119230.0,119220.0,0.21599127]
[1752843842323,0.42364046,119230.0,119220.0,0.20760356]
[1752843842530,0.42364046,119230.0,119220.0,0.23276613]
[1752843842531,0.09389679,119230.0,119220.0,0.23276613]
[1752843842758,0.40682645,119230.0,119220.0,0.20760356]
[1752843842911,0.42360017,119230.0,119220.0,0.2159912]
[1752843843124,0.42360017,119230.0,119220.0,0.21599127]
[1752843843125,0.43198725,119230.0,119220.0,0.21599127]
[1752843843346,0.43198725,119230.0,119220.0,0.19921578]
[1752843843559,0.39835994,119230.0,119220.0,0.20760342]
[1752843843766,0.40674673,119230.0,119220.0,0.20760342]
[1752843843970,0.39835994,119230.0,119220.0,0.21599085]
[1752843844125,0.40674659,119230.0,119220.0,0.20760342]
[1752843844329,0.41513345,119230.0,119220.0,0.21599099]
[1752843844547,0.23061679,119230.0,119220.0,0.22437835]
[1752843844797,0.23900344,119230.0,119220.0,0.22437835]
[1752843845012,0.41513346,119230.0,119220.0,0.21599099]
[1752843845238,0.4319074,119230.0,119220.0,0.20760349]
[1752843845506,0.2951874,119230.0,119220.0,0.20760349]
[1752843845721,0.47843904,119230.0,119220.0,0.02005085]
[1752843845940,0.46166538,119230.0,119220.0,0.02005085]
[1752843846367,0.40895709,119230.0,119220.0,0.02843856]
[1752843846585,0.40895709,119230.0,119220.0,0.02843863]
[1752843846804,0.40895709,119230.0,119220.0,0.20458342]
[1752843847020,0.40698709,119230.0,119220.0,0.22135863]
[1752843847462,0.40698709,119230.0,119220.0,0.21297106]
[1752843847637,0.46475569,119230.0,119220.0,0.20458342]
[1752843847863,0.40698709,119230.0,119220.0,0.20458342]
[1752843848078,0.41537424,119230.0,119220.0,0.02843863]
[1752843848299,0.41537424,119230.0,119220.0,0.0284387]
[1752843848552,0.41537424,119230.0,119220.0,0.03682648]
[1752843848743,0.47398156,119230.0,119220.0,0.03682648]
[1752843848947,0.40698709,119230.0,119220.0,0.2129712]
[1752843849165,0.40698709,119230.0,119220.0,0.22135877]
[1752843849166,0.40698666,119230.0,119220.0,0.22135877]
[1752843849385,0.41537367,119230.0,119220.0,0.22135877]
[1752843849598,0.41537359,119230.0,119220.0,0.22974627]
[1752843849823,0.41537359,119230.0,119220.0,0.22135877]
[1752843850035,0.42376067,119230.0,119220.0,0.20458356]
[1752843850240,0.42376067,119230.0,119220.0,0.0284387]
[1752843850450,0.48320663,119230.0,119220.0,0.03682648]
[1752843850667,0.49159378,119230.0,119220.0,0.21297127]
[1752843850888,0.41537359,119230.0,119220.0,0.22135891]
[1752843851117,0.40698666,119230.0,119220.0,0.19921571]
[1752843851337,0.41537367,119230.0,119220.0,0.19921578]
[1752843851540,0.27841367,119230.0,119220.0,0.03984648]
[1752843851750,0.41529359,119230.0,119220.0,0.21599127]
[1752843851994,0.42368074,119230.0,119220.0,0.21599127]
[1752843852226,0.41529359,119230.0,119220.0,0.21599127]
[1752843852491,0.23904351,119230.0,119220.0,0.23276613]
[1752843852752,0.40678652,119230.0,119220.0,0.22437877]
[1752843852988,0.41517331,119230.0,119220.0,0.23276571]
[1752843853186,0.40678645,119230.0,119220.0,0.21599092]
[1752843853398,0.42553082,119230.0,119220.0,0.19619578]
[1752843853922,0.18450106,119240.0,119230.0,0.17613002]
[1752843854147,0.41519715,119240.0,119230.0,0.19501367]
[1752843854363,0.42358401,119240.0,119230.0,0.00513]
[1752843854577,0.42358401,119240.0,119230.0,0.01351715]
[1752843854786,0.42358401,119240.0,119230.0,0.00211]
[1752843855040,0.02516066,119230.0,119220.0,0.0034]
[1752843855252,0.94592262,119230.0,119220.0,1e-08]
[1752843855474,0.37507851,119230.0,119220.0,1e-08]
[1752843855687,0.57063861,119230.0,119220.0,1e-08]
[1752843855906,0.53726551,119230.0,119220.0,1e-08]
[1752843856539,0.59026551,119230.0,119220.0,1e-08]
[1752843856742,0.59426551,119230.0,119220.0,1e-08]
[1752843857174,0.52715423,119230.0,119220.0,1e-08]
[1752843857386,1.05096834,119230.0,119220.0,1e-08]
[1752843857675,1.13672796,119230.0,119220.0,1e-08]
[1752843862502,1.52672796,119230.0,119220.0,1e-08]
[1752843862716,1.57672796,119230.0,119220.0,1e-08]
[1752843863146,1.43972796,119230.0,119220.0,1e-08]
[1752843863356,1.57664796,119230.0,119220.0,1e-08]
[1752843864774,1.43972796,119230.0,119220.0,1e-08]
[1752843864983,1.57656796,119230.0,119220.0,1e-08]
[1752843865206,1.33972796,119230.0,119220.0,1e-08]
[1752843865410,0.39015423,119230.0,119220.0,1e-08]
[1752843865616,0.52703423,119230.0,119220.0,1e-08]
[1752843865827,0.52699423,119230.0,119220.0,1e-08]
[1752843866037,0.71159423,119230.0,119220.0,1e-08]
[1752843866252,0.66051385,119230.0,119220.0,1e-08]
[1752843866462,0.79731385,119230.0,119220.0,1e-08]
[1752843866667,0.66051385,119230.0,119220.0,1e-08]
[1752843866876,1.32112796,119230.0,119220.0,1e-08]
[1752843867320,0.79731385,119230.0,119220.0,1e-08]
[1752843873194,0.17614479,119220.0,119210.0,0.01420335]
[1752843873477,0.40838271,119220.0,119210.0,0.01626335]
[1752843873694,0.40640271,119220.0,119210.0,0.01626335]
[1752843874056,0.39801507,119220.0,119210.0,0.01626335]
[1752843874253,0.39999507,119220.0,119210.0,0.01626335]
[1752843874501,0.40448339,119220.0,119210.0,0.01420335]
[1752843874754,0.19195957,119210.0,119200.0,0.003]
[1752843875017,0.95576396,119210.0,119200.0,0.003]
[1752843875218,0.43493985,119210.0,119200.0,0.003]
[1752843875394,0.95875396,119210.0,119200.0,0.003]
[1752843876417,0.95875396,119210.0,119200.0,1e-08]
[1752843876418,1.36586524,119210.0,119200.0,1e-08]
[1752843876662,1.40311028,119210.0,119200.0,1e-08]
[1752843877340,1.40299028,119210.0,119200.0,1e-08]
[1752843877781,1.40799028,119210.0,119200.0,1e-08]
[1752843878269,1.40599028,119210.0,119200.0,1e-08]
[1752843878637,1.40899028,119210.0,119200.0,1e-08]
[1752843879251,1.341879,119210.0,119200.0,1e-08]
[1752843880013,1.001879,119210.0,119200.0,1e-08]
[1752843880223,1.391879,119210.0,119200.0,1e-08]
[1752843885876,0.86806489,119210.0,119200.0,1e-08]
[1752843886092,1.391879,119210.0,119200.0,1e-08]
[1752843886736,1.395238,119210.0,119200.0,1e-08]
[1752843890359,1.445238,119210.0,119200.0,1e-08]
[1752843890776,0.73899285,119190.0,119180.0,1e-08]
[1752843890977,1.00539666,119190.0,119180.0,1e-08]
[1752843891175,1.00858666,119190.0,119180.0,1e-08]
[1752843891332,1.34858666,119190.0,119180.0,1e-08]
[1752843891536,1.35194566,119190.0,119180.0,1e-08]
[1752843892700,0.20670391,119180.0,119170.0,6e-05]
[1752843892907,1.03980792,119180.0,119170.0,6e-05]
[1752843893141,1.05734792,119180.0,119170.0,1e-08]
[1752843893350,1.69404792,119180.0,119170.0,1e-08]
[1752843894070,1.69454594,119180.0,119170.0,1e-08]
[1752843894276,1.69554594,119180.0,119170.0,1e-08]
[1752843894916,1.39884594,119180.0,119170.0,1e-08]
[1752843895581,1.26296594,119180.0,119170.0,1e-08]
[1752843895800,1.39976594,119180.0,119170.0,1e-08]
[1752843896243,1.42696394,119180.0,119170.0,1e-08]
[1752843896450,1.42696394,119180.0,119130.0,1e-08]
[1752843896451,0.79552718,119140.0,119130.0,1e-08]
[1752843896663,1.23921708,119140.0,119130.0,1e-08]
[1752843896880,1.28921708,119140.0,119130.0,1e-08]
[1752843897121,1.28977365,119140.0,119130.0,1e-08]
[1752843897357,1.31464168,119140.0,119130.0,1e-08]
[1752843897571,1.12904168,119140.0,119130.0,1e-08]
[1752843897792,1.25181939,119140.0,119130.0,1e-08]
[1752843898002,1.25181939,119140.0,119130.0,0.00201001]
[1752843898003,0.71026971,119140.0,119130.0,0.00201001]
[1752843898240,1.23607939,119140.0,119130.0,1e-08]
[1752843899362,1.25197939,119140.0,119130.0,1e-08]
[1752843899624,1.25297939,119140.0,119130.0,1e-08]
[1752843899848,1.25603029,119140.0,119130.0,1e-08]
[1752843900072,1.27263029,119140.0,119130.0,1e-08]
[1752843900552,0.71432061,119140.0,119130.0,1e-08]
[1752843900766,1.24029029,119140.0,119130.0,0.00201001]
[1752843901015,1.10130029,119140.0,119130.0,0.00201001]
[1752843901216,0.71141061,119140.0,119130.0,0.00201001]
[1752843901741,0.68440258,119140.0,119130.0,0.00515001]
[1752843901952,0.45967206,119140.0,119130.0,0.01969086]
[1752843902185,0.59571206,119140.0,119130.0,0.01969086]
[1752843902394,0.64571206,119140.0,119130.0,0.01969086]
[1752843903092,0.50967206,119140.0,119130.0,0.01969086]
[1752843903364,0.73143168,119140.0,119130.0,0.01969086]
[1752843903602,0.64567206,119140.0,119130.0,0.01969086]
[1752843904755,0.59781206,119140.0,119130.0,0.00201001]
[1752843905005,1.12681174,119140.0,119130.0,0.00201001]
[1752843905497,0.59781206,119140.0,119130.0,0.00201001]
[1752843905765,1.20751947,119140.0,119130.0,0.00201001]
[1752843905952,0.68170979,119140.0,119130.0,0.00201001]
[1752843906243,1.20751947,119140.0,119130.0,0.00201001]
[1752843906495,1.20537947,119140.0,119130.0,0.00201001]
[1752843906738,0.67956979,119140.0,119130.0,0.00515001]
[1752843908525,0.67984979,119140.0,119130.0,0.00515001]
[1752843908955,0.67984979,119140.0,119130.0,0.03479086]
[1752843909163,0.68824306,119140.0,119130.0,0.05029086]
[1752843909606,0.60434533,119140.0,119130.0,0.05029086]
[1752843909836,0.59595206,119140.0,119130.0,0.05029086]
[1752843910689,0.79127872,119140.0,119130.0,0.05029086]
[1752843910918,0.92747872,119140.0,119130.0,0.05029086]
[1752843911555,0.92615106,119140.0,119130.0,0.05029086]
[1752843912241,1.01191068,119140.0,119130.0,0.05029086]
[1752843912663,1.01191068,119140.0,119130.0,0.03519086]
[1752843913086,0.67191068,119140.0,119130.0,0.05049086]
[1752843913317,0.67191068,119140.0,119130.0,0.03519086]
[1752843913564,0.67191068,119140.0,119130.0,0.01969086]
[1752843913800,1.19772036,119140.0,119130.0,0.01969086]
[1752843914235,0.58615106,119140.0,119130.0,0.01969086]
[1752843914471,0.58615106,119140.0,119130.0,0.05059086]
[1752843915150,0.58615085,119140.0,119130.0,0.21847468]
[1752843915372,0.61133038,119140.0,119130.0,0.05898505]
[1752843915595,0.61133094,119140.0,119130.0,0.05898505]
[1752843916313,0.60093781,119140.0,119130.0,0.05059086]
[1752843916523,0.59254461,119140.0,119130.0,0.05159086]
[1752843916735,0.67529576,119140.0,119130.0,0.05159086]
[1752843916951,0.41625725,119140.0,119130.0,0.22786873]
[1752843917187,0.40686391,119140.0,119130.0,0.2446566]
[1752843917412,0.39847071,119140.0,119130.0,0.2446566]
[1752843917647,0.22220799,119140.0,119130.0,0.25405029]
[1752843917864,0.23060084,119140.0,119130.0,0.25405029]
[1752843918321,0.40686356,119140.0,119130.0,0.2456566]
[1752843918550,0.23899383,119140.0,119130.0,0.26244405]
[1752843918779,0.40686356,119140.0,119130.0,0.26244405]
[1752843918999,0.41525662,119140.0,119130.0,0.25405036]
[1752843919230,0.23060084,119140.0,119130.0,0.26244405]
[1752843919461,0.22204799,119140.0,119130.0,0.26244405]
[1752843920201,0.22204799,119140.0,119130.0,0.26144405]
[1752843920693,0.22204799,119140.0,119130.0,0.26544405]
[1752843920935,0.22204799,119140.0,119130.0,0.26444405]
[1752843921170,0.22204799,119140.0,119130.0,0.26644405]
[1752843921870,0.13653771,119140.0,119130.0,0.26644405]
[1752843922136,0.79854387,119140.0,119130.0,0.00600001]
[1752843922357,1.30866387,119140.0,119130.0,0.00600001]
[1752843922842,1.30866387,119140.0,119130.0,0.00200001]
[1752843923059,1.30866387,119140.0,119130.0,0.00300001]
[1752843923272,1.39442349,119140.0,119130.0,0.00300001]
[1752843923493,1.39442349,119140.0,119130.0,0.00200001]
[1752843923776,1.44542349,119140.0,119130.0,0.00200001]
[1752843923993,1.30950349,119140.0,119130.0,1e-08]
[1752843924202,1.44562349,119140.0,119130.0,0.00100001]
[1752843925123,1.44562349,119140.0,119130.0,1e-08]
[1752843925539,1.44662349,119140.0,119130.0,1e-08]
[1752843926607,1.74332349,119140.0,119130.0,1e-08]
[1752843927676,1.44658349,119140.0,119130.0,1e-08]
[1752843928607,0.92077381,119140.0,119130.0,1e-08]
[1752843928860,1.44658349,119140.0,119130.0,1e-08]
[1752843929282,1.31050349,119140.0,119130.0,1e-08]
[1752843929501,1.44658349,119140.0,119130.0,1e-08]
[1752843930587,1.22474387,119140.0,119130.0,0.01445641]
[1752843930810,1.36078387,119140.0,119130.0,0.01445641]
[1752843932576,1.19364387,119140.0,119130.0,0.01445641]
[1752843932797,1.32964387,119140.0,119130.0,0.01445641]
[1752843933018,1.32964387,119140.0,119120.0,0.009721]
[1752843933019,0.54787787,119130.0,119120.0,0.009721]
[1752843933233,1.38302745,119130.0,119120.0,0.009721]
[1752843933450,1.38612745,119130.0,119120.0,0.009721]
[1752843933880,1.39584845,119130.0,119120.0,0.009721]
[1752843934120,1.39584845,119130.0,119120.0,0.02328743]
[1752843934331,1.39584845,119130.0,119120.0,0.02428743]
[1752843935160,1.39584845,119130.0,119120.0,0.00974658]
[1752843940084,1.25984845,119130.0,119120.0,0.00974658]
[1752843940292,1.36388845,119130.0,119120.0,0.00974658]
[1752843940721,1.38028845,119130.0,119120.0,0.00974658]
[1752843940938,1.39558845,119130.0,119120.0,0.00974658]
[1752843942012,1.39558845,119130.0,119120.0,0.00874658]
[1752843942221,0.18468734,119120.0,119110.0,0.01454085]
[1752843942438,1.07381714,119110.0,119100.0,0.0034]
[1752843942644,1.48497742,119110.0,119100.0,0.0034]
[1752843942896,2.0359981,119110.0,119100.0,1e-08]
[1752843943064,1.51018842,119110.0,119100.0,1e-08]
[1752843943275,1.55298195,119110.0,119100.0,1e-08]
[1752843943733,2.07879163,119110.0,119100.0,1e-08]
[1752843944494,2.12879163,119110.0,119100.0,1e-08]
[1752843944908,2.13179163,119110.0,119100.0,1e-08]
[1752843945600,2.13479163,119110.0,119100.0,1e-08]
[1752843945818,1.08317227,119110.0,119100.0,1e-08]
[1752843946045,2.13479163,119110.0,119100.0,1e-08]
[1752843946257,0.54885188,119080.0,119070.0,4.57350379]
[1752843946480,1.37774105,119080.0,119070.0,4.3930217]
[1752843946905,1.40296005,119080.0,119070.0,4.3930217]
[1752843947271,1.40296005,119080.0,119070.0,3.7988365]
[1752843947487,1.40296005,119080.0,119070.0,3.59489552]
[1752843947488,1.69966005,119080.0,119070.0,3.59489552]
[1752843947711,1.70215745,119080.0,119070.0,3.44350915]
[1752843947922,1.70215745,119080.0,119070.0,3.27885168]
[1752843948399,1.75215745,119080.0,119070.0,2.77222733]
[1752843948639,1.75215745,119080.0,119070.0,2.54167297]
[1752843948640,1.45545745,119080.0,119070.0,2.54167297]
[1752843948869,1.45745745,119080.0,119070.0,2.47706429]
[1752843949105,1.34682102,119080.0,119070.0,2.47706429]
[1752843949352,1.48274102,119080.0,119070.0,1.90592251]
[1752843949580,1.48274102,119080.0,119070.0,1.8216618]
[1752843949808,1.48274102,119080.0,119070.0,1.61523158]
[1752843950258,1.48274102,119080.0,119070.0,1.28091544]
[1752843950554,1.34682102,119080.0,119070.0,1.13133848]
[1752843950770,1.40618181,119080.0,119070.0,1.13133848]
[1752843951188,1.22319111,119080.0,119070.0,1.13133848]
[1752843951390,1.35923111,119080.0,119070.0,1.13133848]
[1752843952228,1.22319111,119080.0,119070.0,1.13133848]
[1752843952399,1.30895073,119080.0,119070.0,1.13133848]
[1752843952598,1.44511073,119080.0,119070.0,1.13133848]
[1752843953093,1.44507073,119080.0,119070.0,1.13133848]
[1752843953518,1.44503073,119080.0,119070.0,1.13133848]
[1752843953933,1.44499073,119080.0,119070.0,1.13133848]
[1752843954564,1.41990716,119080.0,119070.0,1.13133848]
[1752843956306,1.46990716,119080.0,119070.0,0.58800774]
[1752843956529,1.46990716,119080.0,119070.0,0.15867564]
[1752843956530,2.04571684,119080.0,119070.0,0.15867564]
[1752843956738,7.13837662,119080.0,119070.0,0.12508275]
[1752843957203,7.11082812,119080.0,119070.0,0.12508275]
[1752843957413,6.58501844,119080.0,119070.0,1e-08]
[1752843957625,6.44897844,119080.0,119070.0,1e-08]
[1752843957852,1.58637844,119080.0,119070.0,1e-08]
[1752843959656,0.6127667,119070.0,119060.0,1e-08]
[1752843959865,1.97436596,119070.0,119060.0,1e-08]
[1752843960005,1.45156628,119070.0,119060.0,1e-08]
[1752843960224,0.7089966,119070.0,119060.0,1e-08]
[1752843960426,1.13284666,119070.0,119060.0,0.00211001]
[1752843960815,0.73871698,119070.0,119060.0,0.00211001]
[1752843961025,1.26452666,119070.0,119060.0,0.00211001]
[1752843961227,1.12768666,119070.0,119060.0,0.00211001]
[1752843961435,1.26456666,119070.0,119060.0,0.00211001]
[1752843961648,0.73875698,119070.0,119060.0,0.00211001]
[1752843961869,1.26456666,119070.0,119060.0,0.00211001]
[1752843962088,1.26671666,119070.0,119060.0,0.00211001]
[1752843962508,1.26972666,119070.0,119060.0,1e-08]
[1752843963373,1.26972666,119070.0,119060.0,0.00211001]
[1752843963993,1.27004666,119070.0,119060.0,0.00211001]
[1752843964204,1.35580628,119070.0,119060.0,0.00211001]
[1752843964422,1.35580628,119070.0,119060.0,1e-08]
[1752843964852,0.8299966,119070.0,119060.0,1e-08]
[1752843965065,1.35580628,119070.0,119060.0,0.00211001]
[1752843965270,1.35279628,119070.0,119060.0,0.00211001]
[1752843965483,1.35283628,119070.0,119060.0,0.00211001]
[1752843966101,1.21559628,119070.0,119060.0,0.00211001]
[1752843966309,1.35315628,119070.0,119060.0,0.00211001]
[1752843966674,1.35315628,119070.0,119060.0,1e-08]
[1752843966896,1.35315628,119070.0,119040.0,0.003]
[1752843966897,0.51639633,119050.0,119040.0,0.003]
[1752843967094,2.01536101,119050.0,119040.0,0.003]
[1752843967313,1.49256133,119050.0,119040.0,0.00511]
[1752843967481,1.51477533,119050.0,119040.0,0.00511]
[1752843967979,2.09169501,119050.0,119040.0,0.006]
[1752843968162,1.33782029,119050.0,119040.0,0.05671]
[1752843968365,1.34621991,119050.0,119040.0,0.07421085]
[1752843968670,0.29561428,119050.0,119040.0,0.07221085]
[1752843968877,0.29561428,119050.0,119040.0,0.26752248]
[1752843969091,0.29561428,119050.0,119040.0,0.26642235]
[1752843969092,0.210104,119050.0,119040.0,0.26642235]
[1752843969298,0.162944,119050.0,119040.0,0.26642235]
[1752843969556,0.162944,119050.0,119040.0,0.24962206]
[1752843969710,0.24845428,119050.0,119040.0,0.07021085]
[1752843969923,0.43320951,119050.0,119040.0,0.07021085]
[1752843970125,0.24841428,119050.0,119040.0,0.24862213]
[1752843970496,0.43320965,119050.0,119040.0,0.07021085]
[1752843970715,0.97811549,119050.0,119040.0,0.04511]
[1752843970914,0.84043549,119050.0,119040.0,0.05865085]
[1752843971055,0.96131633,119050.0,119040.0,0.06065085]
[1752843971245,0.96135633,119050.0,119040.0,0.06065085]
[1752843971454,1.30035633,119050.0,119040.0,0.02165085]
[1752843972084,1.30035633,119050.0,119040.0,0.02465085]
[1752843972276,1.92677601,119050.0,119040.0,1e-08]
[1752843972556,1.90200501,119050.0,119040.0,1e-08]
[1752843972777,1.37619533,119050.0,119040.0,1e-08]
[1752843972997,1.95200501,119050.0,119040.0,1e-08]
[1752843973442,0.18482685,119030.0,119020.0,0.00570069]
[1752843973648,0.39997603,119030.0,119020.0,0.00570069]
[1752843973853,1.29324168,119030.0,119020.0,0.00570069]
[1752843974064,0.767432,119030.0,119020.0,0.02024154]
[1752843974271,1.29324168,119030.0,119020.0,0.02024154]
[1752843974683,0.74887392,119030.0,119020.0,0.02320154]
[1752843974884,0.75007349,119030.0,119020.0,0.05470154]
[1752843975110,1.27588388,119030.0,119020.0,0.00570069]
[1752843975316,1.27889388,119030.0,119020.0,0.00570069]
[1752843975507,1.3646535,119030.0,119020.0,0.00670069]
[1752843975942,1.3616435,119030.0,119020.0,0.00670069]
[1752843976081,1.3646535,119030.0,119020.0,0.00670069]
[1752843978727,0.7502742,119030.0,119020.0,0.00670069]
[1752843978939,1.27608388,119030.0,119020.0,0.00670069]
[1752843979154,0.61183406,119030.0,119020.0,0.07446069]
[1752843979386,0.75867487,119030.0,119020.0,0.07446069]
[1752843979605,0.59065001,119030.0,119020.0,0.07446069]
[1752843979816,0.96376995,119030.0,119020.0,0.07446069]
[1752843980019,1.10216995,119030.0,119020.0,0.07446069]
[1752843980219,1.10212995,119030.0,119020.0,0.07446069]
[1752843980522,1.09372914,119030.0,119020.0,0.07446069]
[1752843980698,1.61953882,119030.0,119020.0,0.07446069]
[1752843980972,0.92570385,119030.0,119020.0,0.07446069]
[1752843981175,0.38370707,119030.0,119020.0,0.2822455]
[1752843981344,0.52214707,119030.0,119020.0,0.2822455]
[1752843982533,0.52214707,119030.0,119020.0,0.2843755]
[1752843982756,0.43659679,119030.0,119020.0,0.2833755]
[1752843983192,0.43559679,119030.0,119020.0,0.2843755]
[1752843984702,0.43659679,119030.0,119020.0,0.2863755]
[1752843985563,1.35515327,119030.0,119020.0,0.00870069]
[1752843986001,1.32435327,119030.0,119020.0,0.00870069]
[1752843986428,1.32435327,119030.0,119020.0,0.00770069]
[1752843986646,0.79854359,119030.0,119020.0,0.00770069]
[1752843986867,1.32435327,119030.0,119020.0,0.00770069]
[1752843987311,0.79854359,119030.0,119020.0,0.00570069]
[1752843987519,1.32435327,119030.0,119020.0,0.00570069]
[1752843987730,1.32435327,119030.0,119020.0,0.00770069]
[1752843988165,1.33935427,119030.0,119020.0,0.00570069]
[1752843988655,1.33935427,119030.0,119020.0,0.00670069]
[1752843988876,1.2940146,119030.0,119020.0,0.00670069]
[1752843989104,1.2910446,119030.0,119020.0,0.00670069]
[1752843989318,1.2910446,119030.0,119020.0,0.08777154]
[1752843989319,0.42719576,119030.0,119020.0,0.08777154]
[1752843989797,0.41879452,119030.0,119020.0,0.08777154]
[1752843990009,0.23396781,119030.0,119020.0,0.26421232]
[1752843990226,0.23396781,119030.0,119020.0,0.08777154]
[1752843990227,0.4103937,119030.0,119020.0,0.08777154]
[1752843990437,0.41879452,119030.0,119020.0,0.08777154]
[1752843990646,0.41039349,119030.0,119020.0,0.08777154]
[1752843990856,0.22556707,119030.0,119020.0,0.27261398]
[1752843991068,0.40199267,119030.0,119020.0,0.08777154]
[1752843991283,0.41039356,119030.0,119020.0,0.08777154]
[1752843991544,0.22556707,119030.0,119020.0,0.26421246]
[1752843991783,0.24236848,119030.0,119020.0,0.26421246]
[1752843992003,0.23396767,119030.0,119020.0,0.09617348]
[1752843992226,0.08700707,119030.0,119020.0,0.28101585]
[1752843992449,0.22544707,119030.0,119020.0,0.29781882]
[1752843992658,0.22544707,119030.0,119020.0,0.34445167]
[1752843992872,0.22544707,119030.0,119020.0,0.29781882]
[1752843994232,0.4186748,119030.0,119020.0,0.00670069]
[1752843994454,0.24224891,119030.0,119020.0,0.02124154]
[1752843994699,0.25065008,119030.0,119020.0,0.02124154]
[1752843994931,0.23384767,119030.0,119020.0,0.19768246]
[1752843995131,0.29684345,119030.0,119020.0,0.21448606]
[1752843995396,0.22444707,119030.0,119020.0,0.23431924]
[1752843995616,0.22444707,119030.0,119020.0,0.29901924]
[1752843995855,0.22444707,119030.0,119020.0,0.29801924]
[1752843997400,0.22444707,119030.0,119020.0,0.29901924]
[1752843997614,0.22444707,119030.0,119020.0,0.30114924]
[1752843998937,0.22420707,119030.0,119020.0,0.18830161]
[1752843999149,0.22420707,119030.0,119020.0,0.00883069]
[1752843999150,0.4174348,119030.0,119020.0,0.00883069]
[1752843999398,0.43086604,119030.0,119020.0,0.02124154]
[1752843999597,0.77184888,119030.0,119020.0,0.02124154]
[1752843999808,0.93987374,119030.0,119020.0,0.02124154]
[1752844000017,0.50822435,119030.0,119020.0,0.03064348]
[1752844000253,0.49982325,119030.0,119020.0,0.04117535]
[1752844000466,0.50525435,119030.0,119020.0,0.02437154]
[1752844000891,0.50525435,119030.0,119020.0,0.02337154]
[1752844001097,0.50525435,119030.0,119020.0,0.02537154]
[1752844001313,0.49685325,119030.0,119020.0,0.20181239]
[1752844001538,0.50525413,119030.0,119020.0,0.02537154]
[1752844001739,0.51365523,119030.0,119020.0,0.02537154]
[1752844002168,0.52205647,119030.0,119020.0,0.02537154]
[1752844002385,0.51365523,119030.0,119020.0,0.02537154]
[1752844002560,0.51365523,119030.0,119020.0,0.03377348]
[1752844002807,0.3372292,119030.0,119020.0,0.21861606]